[Event "*** Titled Tuesday Blitz"]
[Site "Chess.com"]
[Date "2020.11.03"]
[Round "5"]
[White "GMTalks_Youtube"]
[Black "Skat2704"]
[Result "1/2-1/2"]
[WhiteElo "2590"]
[BlackElo "2439"]
[TimeControl "180+1"]
[EndTime "10:59:10 PST"]
[Termination "Game drawn by repetition"]

1. e4 {[%clk 0:03:00.9]} 1... c6 {[%clk 0:03:00.3]} 2. d4 {[%clk 0:03:00.1]}
2... d5 {[%clk 0:03:00.7]} 3. exd5 {[%clk 0:03:00.1]} 3... cxd5 {[%clk
0:03:00.9]} 4. Bf4 {[%clk 0:03:00.7]} 4... Nc6 {[%clk 0:02:59.9]} 5. c3 {[%clk
0:02:59.8]} 5... Nf6 {[%clk 0:03:00]} 6. Nd2 {[%clk 0:02:59.1]} 6... g6 {[%clk
0:02:59.3]} 7. Ngf3 {[%clk 0:02:57.8]} 7... Bg7 {[%clk 0:02:59.4]} 8. Be2 {[%clk
0:02:54.8]} 8... O-O {[%clk 0:02:59.1]} 9. O-O {[%clk 0:02:54.4]} 9... Nd7
{[%clk 0:02:54.3]} 10. Nb3 {[%clk 0:02:46.9]} 10... e5 {[%clk 0:02:52.3]} 11.
dxe5 {[%clk 0:02:46.3]} 11... Ndxe5 {[%clk 0:02:50.3]} 12. Nxe5 {[%clk
0:02:44.5]} 12... Nxe5 {[%clk 0:02:50.3]} 13. Re1 {[%clk 0:02:40.6]} 13... Nc4
{[%clk 0:02:44.7]} 14. Qc1 {[%clk 0:02:28.9]} 14... Be6 {[%clk 0:02:35.9]} 15.
Nd4 {[%clk 0:02:24.3]} 15... Rc8 {[%clk 0:02:29.5]} 16. Bxc4 {[%clk 0:02:10.5]}
16... Rxc4 {[%clk 0:02:24]} 17. b3 {[%clk 0:02:04.5]} 17... Rc8 {[%clk
0:02:16.6]} 18. Qe3 {[%clk 0:01:53.7]} 18... Re8 {[%clk 0:02:12.3]} 19. Rac1
{[%clk 0:01:26.6]} 19... Qa5 {[%clk 0:02:06.5]} 20. Qd2 {[%clk 0:01:16.8]} 20...
Bd7 {[%clk 0:01:55]} 21. Rxe8+ {[%clk 0:01:09.9]} 21... Rxe8 {[%clk 0:01:53.6]}
22. h3 {[%clk 0:01:07.8]} 22... h5 {[%clk 0:01:51.9]} 23. a4 {[%clk 0:01:03.1]}
23... Re4 {[%clk 0:01:49.7]} 24. Be3 {[%clk 0:01:00.9]} 24... a6 {[%clk
0:01:46]} 25. Ne2 {[%clk 0:00:46.9]} 25... Bc6 {[%clk 0:01:43]} 26. Bd4 {[%clk
0:00:34]} 26... Qc7 {[%clk 0:01:28.9]} 27. Bxg7 {[%clk 0:00:32.3]} 27... Kxg7
{[%clk 0:01:28.7]} 28. Nd4 {[%clk 0:00:31.5]} 28... Qe7 {[%clk 0:01:22.3]} 29.
f3 {[%clk 0:00:29.9]} 29... Re5 {[%clk 0:01:19.1]} 30. Kf1 {[%clk 0:00:27.1]}
30... h4 {[%clk 0:01:12.2]} 31. Re1 {[%clk 0:00:26.7]} 31... f6 {[%clk
0:01:10.6]} 32. Rd1 {[%clk 0:00:22.8]} 32... Qd6 {[%clk 0:00:54.2]} 33. Qf2
{[%clk 0:00:18.8]} 33... g5 {[%clk 0:00:32.3]} 34. f4 {[%clk 0:00:18.5]} 34...
gxf4 {[%clk 0:00:27.3]} 35. Qxh4 {[%clk 0:00:19]} 35... Bd7 {[%clk 0:00:21]} 36.
Kg1 {[%clk 0:00:19.3]} 36... Rg5 {[%clk 0:00:20]} 37. Rf1 {[%clk 0:00:18.6]}
37... Qe5 {[%clk 0:00:15.5]} 38. Rxf4 {[%clk 0:00:18.4]} 38... Qe3+ {[%clk
0:00:14]} 39. Kh2 {[%clk 0:00:18.1]} 39... Qd2 {[%clk 0:00:12.6]} 40. Rf2 {[%clk
0:00:16.7]} 40... Qxc3 {[%clk 0:00:11.6]} 41. Nf3 {[%clk 0:00:17.2]} 41... Qc7+
{[%clk 0:00:10.4]} 42. Kh1 {[%clk 0:00:16.7]} 42... Rg6 {[%clk 0:00:09.5]} 43.
Qd4 {[%clk 0:00:16.8]} 43... Qc1+ {[%clk 0:00:09]} 44. Kh2 {[%clk 0:00:16.7]}
44... Qc7+ {[%clk 0:00:08.7]} 45. Kh1 {[%clk 0:00:17]} 45... Qc1+ {[%clk
0:00:08.7]} 46. Kh2 {[%clk 0:00:15.9]} 46... Qc7+ {[%clk 0:00:08.8]} 47. Kh1
{[%clk 0:00:16]} 1/2-1/2

[Event "*** Titled Tuesday Blitz"]
[Site "Chess.com"]
[Date "2020.11.03"]
[Round "5"]
[White "GMKrikor"]
[Black "Zq1"]
[Result "1-0"]
[WhiteElo "2770"]
[BlackElo "2511"]
[TimeControl "180+1"]
[EndTime "10:59:13 PST"]
[Termination "GMKrikor won by resignation"]

1. e4 {[%clk 0:03:00.9]} 1... c5 {[%clk 0:02:59.2]} 2. Nf3 {[%clk 0:03:00.2]}
2... d6 {[%clk 0:02:58.2]} 3. d4 {[%clk 0:02:59.8]} 3... cxd4 {[%clk 0:02:58.2]}
4. Nxd4 {[%clk 0:03:00.7]} 4... Nf6 {[%clk 0:02:58]} 5. Nc3 {[%clk 0:03:01.2]}
5... Nc6 {[%clk 0:02:58.1]} 6. Bg5 {[%clk 0:03:01.1]} 6... e6 {[%clk 0:02:57.6]}
7. Qd2 {[%clk 0:03:00.3]} 7... Be7 {[%clk 0:02:57.1]} 8. O-O-O {[%clk
0:02:59.4]} 8... O-O {[%clk 0:02:55.7]} 9. f4 {[%clk 0:02:57.5]} 9... h6 {[%clk
0:02:55]} 10. h4 {[%clk 0:02:33.9]} 10... e5 {[%clk 0:02:36.9]} 11. Nf5 {[%clk
0:02:02.5]} 11... Bxf5 {[%clk 0:02:35.5]} 12. exf5 {[%clk 0:02:02.7]} 12... exf4
{[%clk 0:02:34.2]} 13. Bxf4 {[%clk 0:01:53.2]} 13... Qa5 {[%clk 0:02:32.6]} 14.
Kb1 {[%clk 0:01:35.6]} 14... Qxf5 {[%clk 0:02:31.6]} 15. Bd3 {[%clk 0:01:35.7]}
15... Qa5 {[%clk 0:02:24.8]} 16. g4 {[%clk 0:01:24]} 16... Nxg4 {[%clk
0:02:13.1]} 17. Qg2 {[%clk 0:01:22.1]} 17... h5 {[%clk 0:02:12.2]} 18. Nd5
{[%clk 0:01:16.9]} 18... Rfe8 {[%clk 0:02:04.6]} 19. Bd2 {[%clk 0:01:06.6]}
19... Qc5 {[%clk 0:01:38]} 20. Nc7 {[%clk 0:01:03.1]} 20... Nce5 {[%clk
0:01:37.4]} 21. Nxa8 {[%clk 0:00:50.6]} 21... Nxd3 {[%clk 0:01:36.9]} 22. cxd3
{[%clk 0:00:49.1]} 22... Rxa8 {[%clk 0:01:36.6]} 23. Qxb7 {[%clk 0:00:47.1]}
23... Re8 {[%clk 0:01:33]} 24. Rhe1 {[%clk 0:00:42.9]} 24... Kf8 {[%clk
0:01:23.1]} 25. Rc1 {[%clk 0:00:34.5]} 25... Qf5 {[%clk 0:01:14.4]} 26. Ka1
{[%clk 0:00:28.4]} 26... Ne5 {[%clk 0:01:09.5]} 27. Rf1 {[%clk 0:00:22.6]} 27...
Qxd3 {[%clk 0:01:05.3]} 28. Bc3 {[%clk 0:00:22.8]} 28... Bf6 {[%clk 0:00:59.8]}
29. Qxa7 {[%clk 0:00:22.8]} 29... Qd5 {[%clk 0:00:54.1]} 30. Rfd1 {[%clk
0:00:19.8]} 30... Qe6 {[%clk 0:00:50.4]} 31. Qa6 {[%clk 0:00:16.6]} 31... Rd8
{[%clk 0:00:46]} 32. Ba5 {[%clk 0:00:15.7]} 32... Rd7 {[%clk 0:00:45.3]} 33.
Qc8+ {[%clk 0:00:14.6]} 33... Qe8 {[%clk 0:00:40.3]} 34. Bb4 {[%clk 0:00:11]}
34... Qxc8 {[%clk 0:00:34.3]} 35. Rxc8+ {[%clk 0:00:11.9]} 35... Ke7 {[%clk
0:00:34.2]} 36. a4 {[%clk 0:00:12.4]} 36... Ra7 {[%clk 0:00:23.4]} 37. Bxd6+
{[%clk 0:00:09.7]} 37... Ke6 {[%clk 0:00:22.9]} 38. Re8+ {[%clk 0:00:05.5]}
38... Kf5 {[%clk 0:00:21.5]} 39. Rf1+ {[%clk 0:00:04.9]} 39... Ke4 {[%clk
0:00:17.1]} 40. Bxe5 {[%clk 0:00:04.7]} 40... Rxa4+ {[%clk 0:00:16.3]} 41. Kb1
{[%clk 0:00:05.3]} 41... Bxh4 {[%clk 0:00:08.5]} 42. Bxg7+ {[%clk 0:00:02.7]}
42... Kd3 {[%clk 0:00:07.5]} 43. Bf6 {[%clk 0:00:03.6]} 43... Bg3 {[%clk
0:00:06.8]} 44. Rf3+ {[%clk 0:00:03]} 1-0

[Event "*** Titled Tuesday Blitz"]
[Site "Chess.com"]
[Date "2020.11.03"]
[Round "5"]
[White "gumimis"]
[Black "IngOscarArdila"]
[Result "0-1"]
[WhiteElo "2239"]
[BlackElo "2125"]
[TimeControl "180+1"]
[EndTime "10:59:13 PST"]
[Termination "IngOscarArdila won on time"]

1. e4 {[%clk 0:02:59]} 1... e5 {[%clk 0:02:58.7]} 2. Nf3 {[%clk 0:02:59.1]} 2...
Nc6 {[%clk 0:02:59.2]} 3. Bb5 {[%clk 0:02:59.2]} 3... a6 {[%clk 0:02:58.4]} 4.
Ba4 {[%clk 0:02:59.2]} 4... Nf6 {[%clk 0:02:58.3]} 5. O-O {[%clk 0:02:58.7]}
5... b5 {[%clk 0:02:58.3]} 6. Bb3 {[%clk 0:02:57.9]} 6... Be7 {[%clk 0:02:58.8]}
7. Re1 {[%clk 0:02:54]} 7... O-O {[%clk 0:02:58.5]} 8. c3 {[%clk 0:02:52.8]}
8... d6 {[%clk 0:02:58.1]} 9. h3 {[%clk 0:02:51.3]} 9... Na5 {[%clk 0:02:58.1]}
10. Bc2 {[%clk 0:02:50.1]} 10... c5 {[%clk 0:02:58.2]} 11. d4 {[%clk 0:02:48.3]}
11... Qc7 {[%clk 0:02:57.3]} 12. Nbd2 {[%clk 0:02:47.3]} 12... Re8 {[%clk
0:02:55.4]} 13. Nf1 {[%clk 0:02:43.6]} 13... g6 {[%clk 0:02:53.9]} 14. Ne3
{[%clk 0:02:38.7]} 14... Bb7 {[%clk 0:02:40.8]} 15. d5 {[%clk 0:02:36]} 15...
Bc8 {[%clk 0:02:35.5]} 16. b4 {[%clk 0:02:27.9]} 16... cxb4 {[%clk 0:02:30.8]}
17. cxb4 {[%clk 0:02:27.1]} 17... Nc4 {[%clk 0:02:31.3]} 18. a4 {[%clk
0:02:03.7]} 18... Bd7 {[%clk 0:02:30.9]} 19. Qe2 {[%clk 0:01:46.6]} 19... Rec8
{[%clk 0:02:29.1]} 20. Bd3 {[%clk 0:01:34.1]} 20... Nh5 {[%clk 0:02:18.6]} 21.
axb5 {[%clk 0:01:19.2]} 21... Bxb5 {[%clk 0:02:10.6]} 22. Nxc4 {[%clk
0:01:14.6]} 22... Bxc4 {[%clk 0:02:08.5]} 23. Be3 {[%clk 0:01:06.5]} 23... Nf4
{[%clk 0:02:03.1]} 24. Bxf4 {[%clk 0:01:06.2]} 24... exf4 {[%clk 0:01:57.2]} 25.
Ra4 {[%clk 0:00:21.9]} 25... Qd7 {[%clk 0:01:42.1]} 26. Rea1 {[%clk 0:00:19.9]}
26... Bxd3 {[%clk 0:01:26.2]} 27. Qd2 {[%clk 0:00:20.1]} 27... Bb5 {[%clk
0:01:21.1]} 28. Ra5 {[%clk 0:00:15.1]} 28... Bf6 {[%clk 0:01:19]} 29. R1a2
{[%clk 0:00:13.8]} 29... Bd8 {[%clk 0:01:13.6]} 30. R5a3 {[%clk 0:00:11]} 30...
Qe7 {[%clk 0:01:00.9]} 31. Qxf4 {[%clk 0:00:09.9]} 31... Bb6 {[%clk 0:01:00.8]}
32. e5 {[%clk 0:00:05.4]} 32... Rc4 {[%clk 0:00:53.8]} 33. exd6 {[%clk
0:00:03.4]} 33... Qd7 {[%clk 0:00:43.7]} 34. Qf6 {[%clk 0:00:02.7]} 34... Bd8
{[%clk 0:00:40.2]} 35. Ne5 {[%clk 0:00:02.4]} 35... Bxf6 {[%clk 0:00:38]} 36.
Nxd7 {[%clk 0:00:03]} 36... Bxd7 {[%clk 0:00:38.2]} 37. Rxa6 {[%clk 0:00:03.9]}
37... Rxa6 {[%clk 0:00:38.1]} 38. Rxa6 {[%clk 0:00:04.8]} 38... Be5 {[%clk
0:00:35.6]} 39. g3 {[%clk 0:00:05.4]} 39... Bxh3 {[%clk 0:00:34.2]} 40. Ra7
{[%clk 0:00:04.8]} 40... Bxd6 {[%clk 0:00:33.1]} 41. b5 {[%clk 0:00:04.2]} 41...
Rc1+ {[%clk 0:00:32.2]} 42. Kh2 {[%clk 0:00:04.5]} 42... Bg4 {[%clk 0:00:32]}
43. Kg2 {[%clk 0:00:03.9]} 43... Rc3 {[%clk 0:00:30.7]} 44. b6 {[%clk
0:00:03.8]} 44... Bf3+ {[%clk 0:00:30.5]} 45. Kh3 {[%clk 0:00:03.1]} 45... Rc1
{[%clk 0:00:30.2]} 46. Kh4 {[%clk 0:00:03.5]} 46... h6 {[%clk 0:00:29.5]} 47.
Ra8+ {[%clk 0:00:01.4]} 47... Kg7 {[%clk 0:00:28.6]} 0-1

[Event "*** Titled Tuesday Blitz"]
[Site "Chess.com"]
[Date "2020.11.03"]
[Round "5"]
[White "Vanina1989"]
[Black "Sanan_Sjugirov"]
[Result "0-1"]
[WhiteElo "2603"]
[BlackElo "2844"]
[TimeControl "180+1"]
[EndTime "10:59:14 PST"]
[Termination "Sanan_Sjugirov won by checkmate"]

1. d4 {[%clk 0:03:00.9]} 1... Nf6 {[%clk 0:02:59]} 2. c4 {[%clk 0:03:01]} 2...
e6 {[%clk 0:02:58.8]} 3. Nf3 {[%clk 0:03:01]} 3... d5 {[%clk 0:02:46.5]} 4. Nc3
{[%clk 0:02:59.8]} 4... Nbd7 {[%clk 0:02:46.4]} 5. Bg5 {[%clk 0:02:57.8]} 5...
Bb4 {[%clk 0:02:44.2]} 6. e3 {[%clk 0:02:56.7]} 6... c5 {[%clk 0:02:41.3]} 7.
cxd5 {[%clk 0:02:46.2]} 7... exd5 {[%clk 0:02:42.2]} 8. Bb5 {[%clk 0:02:42.6]}
8... O-O {[%clk 0:01:39.3]} 9. O-O {[%clk 0:02:40]} 9... Bxc3 {[%clk 0:01:24.3]}
10. bxc3 {[%clk 0:02:39.8]} 10... Qa5 {[%clk 0:01:21.3]} 11. Bxd7 {[%clk
0:02:13.3]} 11... Nxd7 {[%clk 0:01:22.2]} 12. dxc5 {[%clk 0:02:13.6]} 12... Qxc5
{[%clk 0:01:21.4]} 13. Nd4 {[%clk 0:02:13.8]} 13... Nb6 {[%clk 0:01:07]} 14. Rc1
{[%clk 0:01:50.4]} 14... Bd7 {[%clk 0:01:02.1]} 15. Nb3 {[%clk 0:01:43.2]} 15...
Qc4 {[%clk 0:00:54.9]} 16. Qf3 {[%clk 0:00:59.8]} 16... Rfe8 {[%clk 0:00:49]}
17. h3 {[%clk 0:00:54.7]} 17... Rac8 {[%clk 0:00:45.6]} 18. Qg3 {[%clk
0:00:53.4]} 18... Re6 {[%clk 0:00:28.3]} 19. Rfd1 {[%clk 0:00:49.9]} 19... Rg6
{[%clk 0:00:26.6]} 20. Rd4 {[%clk 0:00:35.4]} 20... Qe2 {[%clk 0:00:23.4]} 21.
Qh4 {[%clk 0:00:16.8]} 21... Qxa2 {[%clk 0:00:12.2]} 22. Nd2 {[%clk 0:00:16.8]}
22... Qa3 {[%clk 0:00:08.6]} 23. Rb1 {[%clk 0:00:15.3]} 23... Qxc3 {[%clk
0:00:07.2]} 24. Nf3 {[%clk 0:00:15.5]} 24... f6 {[%clk 0:00:04.9]} 25. Bf4
{[%clk 0:00:15.5]} 25... Bf5 {[%clk 0:00:04.7]} 26. Rbd1 {[%clk 0:00:14.8]}
26... Be4 {[%clk 0:00:04.6]} 27. Ne1 {[%clk 0:00:14.5]} 27... Qb3 {[%clk
0:00:03.2]} 28. f3 {[%clk 0:00:13.8]} 28... Bf5 {[%clk 0:00:03.6]} 29. Qh5
{[%clk 0:00:13.8]} 29... Be6 {[%clk 0:00:03.8]} 30. e4 {[%clk 0:00:13.9]} 30...
Bf7 {[%clk 0:00:03.8]} 31. Qf5 {[%clk 0:00:13.1]} 31... Re8 {[%clk 0:00:03.9]}
32. R4d3 {[%clk 0:00:10.4]} 32... Qa2 {[%clk 0:00:03.5]} 33. R3d2 {[%clk
0:00:10.1]} 33... Qc4 {[%clk 0:00:03.3]} 34. exd5 {[%clk 0:00:10.2]} 34... Qc5+
{[%clk 0:00:03.3]} 35. Kh2 {[%clk 0:00:09.6]} 35... Nc4 {[%clk 0:00:03.5]} 36.
Rc2 {[%clk 0:00:08.8]} 36... b5 {[%clk 0:00:03.9]} 37. Qd3 {[%clk 0:00:07.4]}
37... Qc8 {[%clk 0:00:03.6]} 38. d6 {[%clk 0:00:06.8]} 38... Qd7 {[%clk
0:00:03.9]} 39. Qd4 {[%clk 0:00:07.1]} 39... h6 {[%clk 0:00:03.7]} 40. Nd3
{[%clk 0:00:07.4]} 40... Qf5 {[%clk 0:00:02.1]} 41. Nc5 {[%clk 0:00:07.5]} 41...
Qxc2 {[%clk 0:00:02.2]} 42. d7 {[%clk 0:00:07.3]} 42... Qxg2# {[%clk 0:00:02.2]}
0-1

[Event "*** Titled Tuesday Blitz"]
[Site "Chess.com"]
[Date "2020.11.03"]
[Round "5"]
[White "MartinZumsande"]
[Black "GM_Huschenbeth"]
[Result "1-0"]
[WhiteElo "2596"]
[BlackElo "2368"]
[TimeControl "180+1"]
[EndTime "10:59:15 PST"]
[Termination "MartinZumsande won on time"]

1. e4 {[%clk 0:02:39.7]} 1... e5 {[%clk 0:02:59.1]} 2. Nf3 {[%clk 0:02:39]} 2...
Nc6 {[%clk 0:02:59.8]} 3. Bc4 {[%clk 0:02:39.3]} 3... Nf6 {[%clk 0:02:59.1]} 4.
d3 {[%clk 0:02:39.6]} 4... h6 {[%clk 0:02:58.9]} 5. O-O {[%clk 0:02:34.8]} 5...
d6 {[%clk 0:02:58.5]} 6. c3 {[%clk 0:02:29.4]} 6... g5 {[%clk 0:02:58.4]} 7.
Nbd2 {[%clk 0:02:29]} 7... Bg7 {[%clk 0:02:55.9]} 8. Bb3 {[%clk 0:02:27.4]} 8...
O-O {[%clk 0:02:52]} 9. Nc4 {[%clk 0:02:26.3]} 9... a5 {[%clk 0:02:48.4]} 10.
Ne3 {[%clk 0:02:26.2]} 10... Be6 {[%clk 0:02:42.1]} 11. Bc2 {[%clk 0:02:15.3]}
11... d5 {[%clk 0:02:38.3]} 12. Qe2 {[%clk 0:02:05.4]} 12... d4 {[%clk
0:02:33.7]} 13. Nf5 {[%clk 0:01:58.1]} 13... Bxf5 {[%clk 0:02:32.1]} 14. exf5
{[%clk 0:01:59]} 14... Re8 {[%clk 0:02:06.9]} 15. Nd2 {[%clk 0:01:39.8]} 15...
Nd5 {[%clk 0:01:38.8]} 16. Ne4 {[%clk 0:01:38.4]} 16... Nf4 {[%clk 0:01:38.9]}
17. Bxf4 {[%clk 0:01:38.5]} 17... exf4 {[%clk 0:01:39.8]} 18. Qh5 {[%clk
0:01:32.7]} 18... a4 {[%clk 0:01:28.2]} 19. f6 {[%clk 0:01:30.3]} 19... Bf8
{[%clk 0:01:15.3]} 20. h4 {[%clk 0:01:20.4]} 20... Rxe4 {[%clk 0:01:03.1]} 21.
dxe4 {[%clk 0:01:18.8]} 21... Qxf6 {[%clk 0:01:03.3]} 22. hxg5 {[%clk
0:01:16.5]} 22... hxg5 {[%clk 0:00:59.1]} 23. e5 {[%clk 0:01:13.9]} 23... Qh6
{[%clk 0:00:59]} 24. Qxh6 {[%clk 0:01:10]} 24... Bxh6 {[%clk 0:00:59.9]} 25.
Rfe1 {[%clk 0:01:07.7]} 25... a3 {[%clk 0:00:56.5]} 26. Rab1 {[%clk 0:01:03]}
26... axb2 {[%clk 0:00:36]} 27. Rxb2 {[%clk 0:01:03.9]} 27... dxc3 {[%clk
0:00:36]} 28. Rxb7 {[%clk 0:01:02.8]} 28... Rxa2 {[%clk 0:00:35.5]} 29. Bb3
{[%clk 0:00:56.5]} 29... Rb2 {[%clk 0:00:34.7]} 30. e6 {[%clk 0:00:53.2]} 30...
fxe6 {[%clk 0:00:20.8]} 31. Bxe6+ {[%clk 0:00:52.1]} 31... Kf8 {[%clk
0:00:18.5]} 32. Rxc7 {[%clk 0:00:50.7]} 32... Nd4 {[%clk 0:00:17.1]} 33. Bg4
{[%clk 0:00:40.3]} 33... Bg7 {[%clk 0:00:15.1]} 34. Ra1 {[%clk 0:00:36.5]} 34...
Rb8 {[%clk 0:00:10.4]} 35. Bd1 {[%clk 0:00:23.9]} 35... c2 {[%clk 0:00:09.7]}
36. Rc1 {[%clk 0:00:19.2]} 36... Rb1 {[%clk 0:00:05.7]} 37. R7xc2 {[%clk
0:00:17]} 37... Rxc1 {[%clk 0:00:03.2]} 38. Rxc1 {[%clk 0:00:17.1]} 38... Ke7
{[%clk 0:00:02.5]} 39. Bg4 {[%clk 0:00:17.4]} 39... Be5 {[%clk 0:00:01.8]} 40.
Re1 {[%clk 0:00:17.3]} 40... Kf6 {[%clk 0:00:02.7]} 41. f3 {[%clk 0:00:17.8]}
41... Nc2 {[%clk 0:00:02.4]} 42. Rc1 {[%clk 0:00:17]} 42... Bd4+ {[%clk
0:00:02.4]} 43. Kf1 {[%clk 0:00:16.5]} 43... Ne3+ {[%clk 0:00:02.6]} 44. Ke2
{[%clk 0:00:16.6]} 44... Nxg2 {[%clk 0:00:03.1]} 45. Kd3 {[%clk 0:00:17.1]}
45... Be5 {[%clk 0:00:02.4]} 46. Ke4 {[%clk 0:00:17]} 1-0

[Event "*** Titled Tuesday Blitz"]
[Site "Chess.com"]
[Date "2020.11.03"]
[Round "5"]
[White "HouseOfDurin"]
[Black "Everyfishknows"]
[Result "1-0"]
[WhiteElo "2209"]
[BlackElo "2400"]
[TimeControl "180+1"]
[EndTime "10:59:16 PST"]
[Termination "HouseOfDurin won by resignation"]

1. d4 {[%clk 0:03:00.9]} 1... Nf6 {[%clk 0:02:59.7]} 2. Bg5 {[%clk 0:03:00.8]}
2... Ne4 {[%clk 0:02:59.6]} 3. h4 {[%clk 0:03:00.7]} 3... d5 {[%clk 0:02:59.1]}
4. Nd2 {[%clk 0:03:00]} 4... Bf5 {[%clk 0:02:52.6]} 5. Nxe4 {[%clk 0:02:59]}
5... Bxe4 {[%clk 0:02:53.5]} 6. f3 {[%clk 0:02:59.6]} 6... Bf5 {[%clk
0:02:53.1]} 7. e3 {[%clk 0:03:00.1]} 7... h6 {[%clk 0:02:53]} 8. Bf4 {[%clk
0:02:59.2]} 8... e6 {[%clk 0:02:53.3]} 9. Bd3 {[%clk 0:02:59.4]} 9... Bxd3
{[%clk 0:02:51.7]} 10. Qxd3 {[%clk 0:03:00.3]} 10... c5 {[%clk 0:02:47.1]} 11.
dxc5 {[%clk 0:02:39.3]} 11... Nc6 {[%clk 0:02:40.6]} 12. Qc3 {[%clk 0:02:16.2]}
12... a5 {[%clk 0:02:19.9]} 13. Ne2 {[%clk 0:02:12.2]} 13... Qf6 {[%clk
0:02:10]} 14. Nd4 {[%clk 0:01:49.9]} 14... e5 {[%clk 0:01:44.9]} 15. Nxc6 {[%clk
0:01:47.8]} 15... exf4 {[%clk 0:01:45.1]} 16. Qxf6 {[%clk 0:01:44.7]} 16... gxf6
{[%clk 0:01:46]} 17. Nd4 {[%clk 0:01:28.5]} 17... Bxc5 {[%clk 0:01:35.5]} 18.
Kd2 {[%clk 0:01:13.8]} 18... Kd7 {[%clk 0:01:20.2]} 19. c3 {[%clk 0:01:10.1]}
19... fxe3+ {[%clk 0:01:12.3]} 20. Kxe3 {[%clk 0:01:11]} 20... Rae8+ {[%clk
0:01:04.7]} 21. Kd3 {[%clk 0:01:10.9]} 21... h5 {[%clk 0:01:01.6]} 22. Rae1
{[%clk 0:01:07.6]} 22... Rxe1 {[%clk 0:00:57.4]} 23. Rxe1 {[%clk 0:01:08.5]}
23... Rg8 {[%clk 0:00:57.9]} 24. Rg1 {[%clk 0:00:51.6]} 24... Rg3 {[%clk
0:00:47]} 25. Ke2 {[%clk 0:00:50.8]} 25... Bxd4 {[%clk 0:00:38.3]} 26. cxd4
{[%clk 0:00:51.7]} 26... f5 {[%clk 0:00:39]} 27. Ke3 {[%clk 0:00:51.1]} 27...
Ke6 {[%clk 0:00:35.4]} 28. Kf4 {[%clk 0:00:51]} 28... Rg8 {[%clk 0:00:35.5]} 29.
Re1+ {[%clk 0:00:45.9]} 29... Kf6 {[%clk 0:00:35.5]} 30. g3 {[%clk 0:00:41.9]}
30... Rc8 {[%clk 0:00:29.3]} 31. Re5 {[%clk 0:00:42.3]} 31... Rc2 {[%clk
0:00:26]} 32. Rxd5 {[%clk 0:00:40.8]} 32... Rxb2 {[%clk 0:00:24.1]} 33. Rxf5+
{[%clk 0:00:40.8]} 33... Ke6 {[%clk 0:00:24.1]} 34. Rxa5 {[%clk 0:00:41.4]}
34... Rb4 {[%clk 0:00:20.4]} 35. Ke4 {[%clk 0:00:39.2]} 35... b5 {[%clk
0:00:16.5]} 36. Ra6+ {[%clk 0:00:36.9]} 36... Ke7 {[%clk 0:00:16.9]} 37. Rh6
{[%clk 0:00:35.2]} 37... Rb2 {[%clk 0:00:16]} 38. Rxh5 {[%clk 0:00:35.1]} 38...
b4 {[%clk 0:00:15.1]} 39. Rb5 {[%clk 0:00:34.3]} 39... Re2+ {[%clk 0:00:12.7]}
40. Kf4 {[%clk 0:00:34.1]} 40... Rb2 {[%clk 0:00:11.5]} 41. d5 {[%clk
0:00:33.5]} 41... Kd6 {[%clk 0:00:11.7]} 42. g4 {[%clk 0:00:33.3]} 42... Rxa2
{[%clk 0:00:08.8]} 43. Rxb4 {[%clk 0:00:33]} 43... Kxd5 {[%clk 0:00:08.8]} 44.
Re4 {[%clk 0:00:33.4]} 44... Ra8 {[%clk 0:00:04]} 45. h5 {[%clk 0:00:33.8]}
45... Rh8 {[%clk 0:00:04]} 46. Kg5 {[%clk 0:00:33.3]} 46... Kd6 {[%clk
0:00:02.2]} 47. h6 {[%clk 0:00:32.2]} 47... Rh7 {[%clk 0:00:02.1]} 48. Kh5
{[%clk 0:00:31.9]} 48... f6 {[%clk 0:00:01.6]} 49. f4 {[%clk 0:00:31.3]} 49...
Kd5 {[%clk 0:00:01.5]} 50. Re8 {[%clk 0:00:31.1]} 50... Kd6 {[%clk 0:00:01.6]}
51. g5 {[%clk 0:00:31.1]} 51... fxg5 {[%clk 0:00:01.6]} 52. fxg5 {[%clk
0:00:30.3]} 52... Kd7 {[%clk 0:00:02.5]} 53. Re2 {[%clk 0:00:29.5]} 53... Rf7
{[%clk 0:00:03.4]} 54. Kg6 {[%clk 0:00:26.5]} 54... Rf1 {[%clk 0:00:04.3]} 55.
h7 {[%clk 0:00:26.1]} 55... Rh1 {[%clk 0:00:05.2]} 56. Kg7 {[%clk 0:00:25.5]}
56... Rg1 {[%clk 0:00:06.1]} 57. g6 {[%clk 0:00:25.6]} 57... Rh1 {[%clk
0:00:07]} 58. h8=Q {[%clk 0:00:25.2]} 1-0